bitfinex/quotes_SOLUSD_20240821
["timestamp","ask_amount","ask_price","bid_price","bid_amount"]
[1724251021136,0.2450097,141.2,141.09,17.7191]
[1724251021445,0.2450097,141.2,141.1,7.0867]
[1724251021446,7.0846,141.15,141.1,7.0867]
[1724251021628,65.2450097,141.2,141.11,7.0865]
[1724251021825,65.2450097,141.2,141.09,17.7191]
[1724251021826,7.0841,141.17,141.09,17.7191]
[1724251022032,1.77139097,141.16,141.06,24.3582]
[1724251022249,7.087,141.11,141.04,23.1879]
[1724251022541,389.57214352,141.14,141.04,16.0978]
[1724251022720,452.8,141.13,141.04,16.0978]
[1724251022922,407.8,141.13,141.04,16.0978]
[1724251023148,387.8,141.13,141.08,17.7196]
[1724251023333,387.8,141.13,141.1,7.087]
[1724251023646,0.2450097,141.2,141.07,40.91]
[1724251023843,7.0828,141.19,141.14,7.0849]
[1724251024044,7.3271097,141.2,141.14,7.0849]
[1724251024254,0.2450097,141.2,141.17,7.0835]
[1724251024620,0.2450097,141.2,141.16,7.084]
[1724251024824,0.2450097,141.2,141.13,7.0851]
[1724251025043,2.01606204,141.2,141.12,7.0861]
[1724251025223,7.0842,141.16,141.11,17.7164]
[1724251025423,2.01606204,141.2,141.05,6.5442]
[1724251025424,8.85609527,141.15,141.1,7.087]
[1724251025636,7.0841,141.16,141.1,7.087]
[1724251025833,7.0837,141.17,141.11,7.0861]
[1724251026051,1.77134944,141.16,141.1,17.7168]
[1724251026264,65.0,141.18,141.1,17.7168]
[1724251026424,387.8,141.19,141.13,7.0855]
[1724251026745,1.77115799,141.18,141.12,7.0861]
[1724251026957,7.0842,141.16,141.11,7.0865]
[1724251027135,7.0855,141.14,141.06,17.7221]
[1724251027332,394.8836,141.18,141.12,7.0861]
[1724251027536,28.85482234,141.17,141.12,7.0861]
[1724251027737,28.85482234,141.17,141.11,7.0866]
[1724251027935,0.2450097,141.2,141.14,7.0851]
[1724251027936,7.0826,141.19,141.14,7.0851]
[1724251028455,0.2450097,141.2,141.15,7.0846]
[1724251028771,0.2450097,141.2,141.17,7.0835]
[1724251029266,0.2450097,141.2,141.16,17.7092]
[1724251029565,0.2450097,141.2,141.19,7.0826]
[1724251029869,7.9686176,141.28,141.2,17.7044]
[1724251030158,0.8905176,141.28,141.21,0.25098]
[1724251030363,0.8905176,141.28,141.21,20.12549]
[1724251030577,0.8905176,141.28,141.26,7.0791]
[1724251030739,0.8905176,141.28,141.24,17.6991]
[1724251031784,0.8905176,141.28,141.27,24.7752]
[1724251031939,0.8905176,141.28,141.27,25.02618]
[1724251032260,7.0731,141.38,141.3,24.7686]
[1724251032428,7.0733,141.38,141.3,17.6919]
[1724251032859,0.8905176,141.43,141.3,17.6919]
[1724251033131,1.76833914,141.42,141.31,45.25098]
[1724251033260,7.0726,141.39,141.32,7.0757]
[1724251033444,8.84162158,141.38,141.32,7.0757]
[1724251033766,1.76884312,141.37,141.3,23.9164]
[1724251033948,1.7689577,141.42,141.29,16.5199]
[1724251034151,17.6808,141.4,141.26,17.6972]
[1724251034379,21.76950176,141.39,141.26,17.6972]
[1724251034550,21.76950176,141.39,141.24,6.2577]
[1724251034551,45.0,141.38,141.29,17.6935]
[1724251034871,29.2528246,141.43,141.29,17.6935]
[1724251034872,1.76883043,141.37,141.29,17.6935]
[1724251035171,2.659339,141.43,141.29,17.6935]
[1724251035374,0.8905176,141.43,141.29,17.6935]
[1724251035563,1.76844201,141.42,141.31,7.0762]
[1724251035873,2.65925751,141.43,141.32,7.0761]
[1724251036162,0.8905176,141.43,141.38,7.0728]
[1724251036360,0.8905176,141.43,141.33,0.25098]
[1724251036361,0.8905176,141.43,141.39,7.0726]
[1724251036678,0.8905176,141.43,141.34,15.1937]
[1724251036965,0.8905176,141.43,141.4,7.0716]
[1724251037161,0.8905176,141.43,141.35,24.08069]
[1724251037378,7.0712,141.42,141.35,31.0297]
[1724251037547,0.8905176,141.43,141.36,0.12549]
[1724251037749,0.8905176,141.43,141.4,7.0721]
[1724251038264,0.8905176,141.43,141.38,17.6824]
[1724251038448,0.8905176,141.43,141.39,7.0725]
[1724251038652,0.8905176,141.43,141.38,24.7555]
[1724251038851,0.8905176,141.43,141.38,17.6824]
[1724251039234,9.72893363,141.43,141.38,17.6824]
[1724251039438,9.72893363,141.43,141.34,32.8808]
[1724251039439,2.65833363,141.43,141.34,32.8808]
[1724251039636,7.9615176,141.43,141.34,32.8808]
[1724251039837,0.8905176,141.43,141.37,17.6837]
[1724251040366,0.8905176,141.43,141.38,7.0729]
[1724251040568,0.8905176,141.43,141.39,7.0725]
[1724251040872,0.8905176,141.43,141.4,7.072]
[1724251041049,0.8905176,141.43,141.38,7.0727]
[1724251041244,0.8905176,141.43,141.37,17.80919]
[1724251041449,0.8905176,141.43,141.37,24.7573]
[1724251041766,0.8905176,141.43,141.38,7.0731]
[1724251041963,0.8905176,141.43,141.37,17.6837]
[1724251042165,0.8905176,141.43,141.35,7.0746]
[1724251042166,7.0716,141.42,141.35,7.0746]
[1724251042481,1.76817451,141.41,141.33,17.688]
[1724251042773,7.0726,141.39,141.33,7.0756]
[1724251042978,1.76840463,141.38,141.33,7.0756]
[1724251043144,1.76873979,141.42,141.3,17.6928]
[1724251043350,45.0,141.38,141.3,17.6928]
[1724251043567,7.0751,141.35,141.28,7.078]
[1724251043768,46.76900773,141.34,141.26,32.9419]
[1724251043959,45.0,141.38,141.28,17.6942]
[1724251044164,27.0736,141.37,141.31,7.0765]
[1724251044469,1.7687823,141.36,141.28,7.078]
[1724251044677,1.76894753,141.35,141.28,7.078]
[1724251045277,1.76894753,141.35,141.26,32.9419]
[1724251045477,21.76894753,141.35,141.26,17.6966]
[1724251046086,39.45644753,141.35,141.22,17.7025]
[1724251046293,45.0,141.34,141.22,17.7025]
[1724251046476,7.0781,141.28,141.22,24.7836]
[1724251046982,7.0792,141.26,141.2,15.8879]
[1724251047189,7.0792,141.26,141.15,6.6394]
[1724251047190,42.67996605,141.26,141.15,6.6394]
[1724251047366,7.0811,141.23,141.16,7.0841]
[1724251047560,7.0811,141.23,141.17,7.0836]
[1724251047881,7.0811,141.23,141.15,6.6394]
[1724251047882,8.85144972,141.23,141.16,7.0841]
[1724251048070,1.7705791,141.22,141.16,7.0841]
[1724251048404,8.8518791,141.22,141.16,7.0841]
[1724251048607,1.7705791,141.22,141.14,24.797]
[1724251048883,7.0837,141.17,141.11,24.8028]
[1724251049089,1.77100607,141.16,141.11,24.8028]
[1724251049496,65.0,141.22,141.09,7.0871]
[1724251049497,1.77128305,141.19,141.09,7.0871]
[1724251049661,65.0,141.2,141.08,16.2676]
[1724251050193,1.77121728,141.19,141.04,16.0761]
[1724251050576,1.77121728,141.19,141.04,7.0901]
[1724251050577,40.91,141.11,141.04,7.0901]
[1724251050789,1.77205328,141.1,141.04,7.0901]
[1724251051081,17.7077,141.19,141.05,17.7239]
[1724251051267,66.77158267,141.18,141.05,17.7239]
[1724251051456,17.7105,141.16,141.05,24.8135]
[1724251051659,7.086,141.13,141.05,24.8135]
[1724251051900,7.086,141.13,141.06,7.0891]
[1724251052196,65.0,141.15,141.08,17.7203]
[1724251052197,72.085,141.15,141.08,17.7203]
[1724251052361,72.085,141.15,140.98,56.9861]
[1724251052362,7.0862,141.12,141.06,7.0891]
[1724251052691,1.77194989,141.13,141.04,17.7243]
[1724251052868,7.0861,141.13,141.07,7.0885]
[1724251053201,21.77189685,141.16,141.07,17.7212]
[1724251053202,7.0863,141.12,141.07,17.7212]
[1724251053393,7.0857,141.13,141.07,7.0886]
[1724251053608,20.0,141.16,141.03,0.12549]
[1724251053771,46.77168204,141.15,141.03,65.25098]
[1724251053979,6.86240034,141.22,141.07,35.4429]
[1724251054279,7.0846,141.16,141.09,24.8057]
[1724251054497,7.0846,141.15,141.09,24.8057]
[1724251054702,7.0851,141.14,141.09,17.7181]
[1724251055215,17.7059,141.2,141.05,17.723]
[1724251055216,1.77165388,141.13,141.05,17.723]
[1724251055504,7.0862,141.12,141.06,7.0887]
[1724251055675,1.77194593,141.11,141.06,7.0887]
[1724251056078,1.77194593,141.12,141.07,7.0886]
[1724251056286,1.77194593,141.12,141.05,17.723]
[1724251056475,7.0871,141.11,141.05,17.723]
[1724251056682,7.0871,141.11,141.05,24.8126]
[1724251056683,1.77222513,141.1,141.05,24.8126]
[1724251057192,1.77219407,141.1,141.05,24.8126]
[1724251057498,8.85939407,141.1,141.05,17.723]
[1724251058101,7.0866,141.12,141.05,17.723]
[1724251058301,6.2723,141.17,141.07,17.7204]
[1724251058508,7.0847,141.15,141.07,17.7204]
[1724251058691,1.77174378,141.14,141.07,17.7204]
[1724251058881,6.2723,141.17,141.11,7.0865]
[1724251059076,40.91,141.19,141.11,7.0865]
[1724251059291,7.0842,141.16,141.1,24.8049]
[1724251059493,1.77153263,141.15,141.1,24.8049]
[1724251059697,1.77141949,141.14,141.1,17.7178]
[1724251059897,1.77141949,141.14,141.07,24.8096]
[1724251060081,7.0857,141.13,141.07,24.8096]
[1724251060276,7.0852,141.14,141.08,7.088]
[1724251060494,20.0,141.2,141.06,35.4444]
[1724251060816,7.0841,141.17,141.07,45.25098]
[1724251061017,7.083,141.19,141.14,7.0851]
[1724251061306,387.8,141.21,141.16,7.084]
[1724251061506,387.8,141.21,141.15,17.7105]
[1724251061706,7.0801,141.24,141.18,7.0827]
[1724251061886,1.77045956,141.24,141.14,0.12549]
[1724251062090,40.91,141.29,141.19,17.7054]
[1724251062278,39.6783,141.32,141.23,7.0805]
[1724251062279,7.0776,141.3,141.23,7.0805]
[1724251062477,21.9879,141.32,141.23,7.0805]
[1724251062478,8.84764306,141.29,141.23,7.0805]
[1724251062680,6.04,141.32,141.18,35.53919]
[1724251062918,21.9879,141.38,141.28,7.0779]
[1724251063214,7.80946568,141.38,141.25,17.6989]
[1724251063399,7.0747,141.35,141.25,17.6989]
[1724251063590,7.0747,141.35,141.23,7.0802]
[1724251063591,7.0771,141.3,141.23,7.0802]
[1724251063780,1.76984478,141.34,141.21,17.7034]
[1724251063986,7.0768,141.31,141.24,17.6998]
[1724251064181,1.76984251,141.3,141.24,17.6998]
[1724251064380,1.76980918,141.29,141.24,17.6998]
[1724251064615,1.76979557,141.3,141.24,24.7797]
[1724251064901,1.76979622,141.29,141.24,24.7797]
[1724251065676,1.76979312,141.36,141.24,17.6998]
[1724251065877,1.76956937,141.35,141.27,17.6958]
[1724251066082,7.0751,141.34,141.28,7.0777]
[1724251066308,20.2328237,141.42,141.24,35.3998]
[1724251066309,1.76943477,141.41,141.3,17.692]
[1724251066496,1.76943477,141.41,141.31,7.0765]
[1724251066678,1.76943477,141.41,141.3,17.692]
[1724251066883,11.65091832,141.41,141.28,7.0777]
[1724251067083,11.65091832,141.41,141.29,7.0775]
[1724251067388,11.65091832,141.41,141.26,17.6971]
[1724251067389,7.0761,141.32,141.26,17.6971]
[1724251067594,7.0755,141.34,141.26,17.6971]
[1724251067907,53.84518203,141.33,141.26,24.7757]
[1724251068113,17.6823,141.39,141.26,17.6971]
[1724251068311,7.0746,141.36,141.29,7.0772]
[1724251068515,7.0746,141.35,141.29,7.0772]
[1724251068686,7.0763,141.32,141.26,17.6971]
[1724251068895,1.76954877,141.31,141.26,17.6971]
[1724251069799,53.84624877,141.31,141.26,17.6971]
[1724251070005,7.0751,141.34,141.27,7.0786]
[1724251070300,1.76967194,141.38,141.29,7.0775]
[1724251070496,21.76967194,141.38,141.29,7.0775]
[1724251070806,17.6855,141.36,141.24,7.0797]
[1724251071018,7.0766,141.32,141.25,7.0793]
[1724251071199,7.0766,141.32,141.26,7.0791]
[1724251071403,8.84622763,141.31,141.25,17.6989]
[1724251071605,1.76978038,141.3,141.25,24.7783]
[1724251071800,1.7697274,141.29,141.25,24.7783]
[1724251072220,1.7697274,141.29,141.25,17.6989]
[1724251072525,1.7697274,141.29,141.21,17.7033]
[1724251072701,7.0796,141.25,141.14,16.1439]
[1724251072903,40.91,141.23,141.17,17.7083]
[1724251073219,40.91,141.23,141.17,24.7914]
[1724251073393,42.68053138,141.23,141.17,24.7914]
[1724251073724,8.85113138,141.23,141.17,24.7914]
[1724251073897,19.46750201,141.27,141.17,24.7919]
[1724251074100,20.0,141.26,141.17,24.7919]
[1724251074294,7.0801,141.24,141.18,7.083]
[1724251074703,8.85059103,141.24,141.18,7.083]
[1724251074910,45.0,141.25,141.19,7.0826]
[1724251075108,20.0,141.24,141.17,24.7915]
[1724251075334,20.0,141.24,141.17,17.7083]
[1724251075691,1.77044432,141.31,141.19,17.7054]
[1724251075936,20.0,141.28,141.19,17.7054]
[1724251076216,45.0,141.27,141.21,7.0816]
[1724251076424,20.0,141.26,141.21,7.0816]
[1724251076728,1.77015693,141.27,141.21,7.0816]
[1724251076893,1.7701153,141.26,141.21,7.0816]
[1724251077322,21.77011708,141.28,141.22,7.0811]
[1724251077531,1.77011708,141.28,141.21,24.7845]
[1724251077822,1.77021764,141.31,141.21,24.7845]
[1724251078225,1.77021764,141.31,141.22,7.081]
[1724251078526,1.77021764,141.31,141.21,17.7029]
[1724251078699,19.46191764,141.31,141.21,17.7029]
[1724251078899,1.77010666,141.3,141.23,17.7005]
[1724251079197,1.76978781,141.29,141.2,17.7051]
[1724251079502,1.76978781,141.29,141.14,92.478]
[1724251079503,1.76978781,141.29,141.16,17.7097]
[1724251079707,1.77043925,141.31,141.14,51.568]
[1724251080133,1.77043925,141.31,141.22,7.0811]
[1724251080134,7.0784,141.28,141.22,7.0811]
[1724251080302,19.46303925,141.31,141.19,17.7062]
[1724251080303,66.77018419,141.27,141.19,17.7062]
[1724251080620,7.0802,141.24,141.19,17.7062]
[1724251081022,8.85000242,141.25,141.19,24.7887]
[1724251081196,7.0804,141.24,141.19,17.7062]
[1724251081397,8.8510345,141.23,141.16,17.7101]
[1724251081614,45.0,141.27,141.14,16.1439]
[1724251081615,7.0797,141.25,141.2,7.082]
[1724251081828,22.54694741,141.31,141.22,7.0811]
[1724251081829,7.0786,141.28,141.22,7.0811]
[1724251082130,1.77015744,141.27,141.2,17.7041]
[1724251082306,1.77037122,141.26,141.2,17.7041]
[1724251082620,40.23964741,141.31,141.2,17.7041]
[1724251082927,1.77016858,141.3,141.2,17.7041]
[1724251083104,7.0785,141.28,141.22,7.0811]
[1724251083308,21.77010653,141.27,141.2,17.7041]
[1724251083502,37.6927,141.31,141.22,17.7019]
[1724251083503,20.0,141.31,141.22,17.7019]
[1724251083706,7.0777,141.29,141.24,7.0801]
[1724251084010,7.0761,141.32,141.2,35.4095]
[1724251084203,17.6844,141.37,141.27,7.0784]
[1724251084535,17.6844,141.37,141.27,7.0785]
[1724251084536,7.0757,141.33,141.27,7.0785]
[1724251084745,1.76941866,141.32,141.27,7.0785]
[1724251084907,1.76941866,141.32,141.21,65.25098]
[1724251084908,1.76941866,141.32,141.21,0.25098]
[1724251085235,389.56973838,141.36,141.21,65.25098]
[1724251085430,7.0752,141.34,141.26,17.6971]
[1724251085638,1.76921372,141.35,141.31,7.0763]
[1724251085809,1.76921372,141.35,141.31,17.6915]
[1724251086005,7.0752,141.34,141.29,7.0775]
[1724251086205,1.76919875,141.33,141.29,7.0775]
[1724251086424,7.0752,141.34,141.29,7.0775]
[1724251086634,1.7691514,141.37,141.3,7.0769]
[1724251086960,387.8,141.38,141.3,7.0769]
[1724251086961,387.8,141.38,141.31,7.0766]
[1724251087116,1.76892856,141.36,141.3,24.7692]
[1724251087322,1.76905184,141.35,141.3,24.7692]
[1724251087521,8.84405184,141.35,141.3,17.6921]
[1724251088041,7.0741,141.36,141.3,17.6921]
[1724251088344,0.7257795,141.39,141.3,17.6921]
[1724251088543,7.075,141.35,141.3,24.7691]
[1724251088710,0.7257795,141.39,141.31,7.0765]
[1724251089407,7.0737,141.37,141.31,7.0765]
[1724251089602,0.7257795,141.39,141.3,17.6921]
[1724251089808,7.0731,141.38,141.3,17.6921]
[1724251090322,7.0737,141.37,141.32,7.076]
[1724251090633,1.76869682,141.36,141.3,24.7687]
[1724251090849,7.0746,141.35,141.3,24.7687]
[1724251091036,1.76892894,141.34,141.27,17.6964]
[1724251091239,7.0767,141.31,141.24,69.396]
[1724251091418,7.0762,141.32,141.24,69.396]
[1724251091744,387.8,141.36,141.29,7.0772]
[1724251091916,387.8,141.36,141.24,51.6961]
[1724251091917,7.0753,141.34,141.28,24.7723]
[1724251092111,8.84437323,141.34,141.29,7.0775]
[1724251092315,7.0753,141.34,141.29,7.0775]
[1724251092712,387.8,141.36,141.3,17.6919]
[1724251092939,7.074,141.37,141.31,7.0765]
[1724251093707,1.76869492,141.36,141.28,7.0776]
[1724251093907,1.76890847,141.35,141.28,7.0776]
[1724251094349,7.0744,141.36,141.31,7.0765]
[1724251094512,7.074,141.37,141.31,7.0765]
[1724251094718,0.7257795,141.39,141.33,7.0752]
[1724251094719,7.7985795,141.39,141.33,7.0752]
[1724251095043,0.7257795,141.39,141.36,7.0736]
[1724251095246,0.7257795,141.39,141.35,17.6858]
[1724251095947,2.4940619,141.39,141.32,17.6901]
[1724251096113,7.0731,141.38,141.32,24.7661]
[1724251096516,1.76855771,141.38,141.29,17.6937]
[1724251096714,1.76855771,141.38,141.24,16.296]
[1724251096715,7.0765,141.32,141.26,17.6978]
[1724251096943,389.56855771,141.38,141.26,17.6978]
[1724251096944,7.076,141.33,141.26,24.7765]
[1724251097113,8.84536903,141.32,141.27,7.0784]
[1724251097430,7.076,141.33,141.26,17.6978]
[1724251097740,7.076,141.33,141.27,7.0785]
[1724251097914,7.076,141.33,141.28,7.0779]
[1724251098553,387.8,141.37,141.28,7.0779]
[1724251098554,387.8,141.37,141.28,17.6941]
[1724251098755,394.874,141.37,141.31,7.0765]
[1724251099146,387.8,141.37,141.3,17.6918]
[1724251099470,394.874,141.37,141.31,7.0762]
[1724251099956,394.874,141.37,141.32,7.0759]
[1724251100165,7.0741,141.36,141.31,7.0766]
[1724251100334,2.49461038,141.39,141.3,17.6918]
[1724251100663,7.0742,141.36,141.3,24.7685]
[1724251100962,1.76880725,141.35,141.27,17.6961]
[1724251101257,7.0758,141.33,141.28,7.0776]
[1724251101649,18.4083795,141.39,141.26,0.12549]
[1724251101650,1.76900551,141.38,141.3,17.6928]
[1724251101831,1.76900551,141.38,141.26,0.12549]
[1724251101832,1.76890389,141.37,141.28,7.078]
[1724251102939,7.0761,141.32,141.27,24.7745]
[1724251103143,1.76923963,141.36,141.27,17.696]
[1724251103354,1.76926983,141.35,141.24,33.9958]
[1724251103656,17.688,141.34,141.24,33.9958]
[1724251104035,7.0772,141.3,141.26,17.6972]
[1724251104243,452.8,141.36,141.26,17.6972]
[1724251104244,7.077,141.31,141.26,24.7763]
[1724251104466,1.7692939,141.32,141.26,17.6972]
[1724251104671,7.0773,141.3,141.26,17.6972]
[1724251104960,1.76952609,141.29,141.18,22.7028]
[1724251105269,7.0792,141.26,141.21,7.0815]
[1724251105566,7.0781,141.28,141.23,7.0805]
[1724251105786,394.8776,141.3,141.24,7.0798]
[1724251105947,7.0782,141.28,141.23,24.7813]
[1724251106285,7.0776,141.29,141.24,7.08]
[1724251106875,387.8,141.33,141.22,7.081]
[1724251106876,7.0787,141.27,141.22,7.081]
[1724251107046,7.078,141.29,141.23,7.0803]
[1724251107681,7.0782,141.28,141.23,7.0803]
[1724251108380,17.6913,141.32,141.24,7.08]
[1724251108548,45.0,141.31,141.24,7.08]
[1724251108746,1.76959519,141.3,141.22,24.7827]
[1724251108970,1.76969565,141.29,141.22,17.7021]
[1724251109272,1.76969565,141.29,141.22,24.7832]
[1724251109588,46.76969565,141.29,141.19,17.7062]
[1724251109891,46.76969565,141.29,141.19,24.7886]
[1724251110254,387.8,141.28,141.19,24.7886]
[1724251110582,33.76,141.26,141.2,7.0821]
[1724251110785,1.77017537,141.26,141.19,17.7062]
[1724251111079,1.77017537,141.26,141.19,24.7884]
[1724251111256,33.76,141.26,141.2,7.0821]
[1724251111454,45.0,141.27,141.2,7.0821]
[1724251111654,1.77010265,141.27,141.21,17.703]
[1724251111881,387.8,141.28,141.21,17.703]
[1724251112077,7.0791,141.26,141.21,24.7845]
[1724251112453,7.0786,141.27,141.22,7.081]
[1724251112660,7.0791,141.26,141.21,24.7845]
[1724251112982,7.0787,141.27,141.21,24.7845]
[1724251113357,7.0802,141.24,141.19,7.0825]
[1724251113570,1.76999488,141.26,141.18,34.1164]
[1724251113571,7.0796,141.25,141.2,7.082]
[1724251113882,7.0791,141.26,141.21,7.0812]
[1724251114259,8.84989419,141.25,141.2,24.7865]
[1724251114476,7.0798,141.25,141.2,24.7865]
[1724251114674,387.8,141.29,141.22,17.7022]
[1724251114854,387.8,141.29,141.25,7.0796]
[1724251115055,7.0766,141.31,141.26,7.0789]
[1724251115252,387.8,141.33,141.19,55.4128]
[1724251115456,19.46050242,141.32,141.2,65.25098]
[1724251115678,19.46050242,141.32,141.22,17.7022]
[1724251115874,1.76964276,141.35,141.2,65.25098]
[1724251116083,1.76950017,141.37,141.28,7.078]
[1724251116257,405.486,141.36,141.26,7.0789]
[1724251116461,7.0762,141.32,141.27,7.0785]
[1724251116883,7.0757,141.33,141.27,7.0785]
[1724251117290,8.84564004,141.32,141.26,7.079]
[1724251117484,7.0763,141.32,141.26,7.079]
[1724251117970,7.0766,141.31,141.26,7.079]
[1724251118491,7.0763,141.32,141.27,7.0785]
[1724251118785,52.0768,141.31,141.26,7.079]
[1724251119384,387.8,141.34,141.26,7.079]
[1724251119385,7.0762,141.32,141.26,7.079]
[1724251119568,7.0762,141.32,141.27,7.0784]
[1724251119985,8.84504979,141.33,141.28,7.078]
[1724251120380,7.0761,141.32,141.27,7.0785]
[1724251120762,7.0757,141.33,141.28,7.0781]
[1724251121159,7.0761,141.32,141.27,7.0785]
[1724251121361,387.8,141.34,141.27,17.6956]
[1724251121664,394.8752,141.34,141.29,24.7705]
[1724251122163,7.0756,141.33,141.29,24.7705]
[1724251122363,7.0751,141.34,141.29,24.7705]
[1724251122563,33.76,141.36,141.31,7.0761]
[1724251122564,7.0741,141.36,141.31,7.0761]
[1724251122779,24.8424795,141.39,141.29,17.693]
[1724251122780,26.61138152,141.39,141.29,17.693]
[1724251122984,17.6847,141.37,141.26,17.6972]
[1724251123292,7.0752,141.34,141.29,7.0775]
[1724251123988,45.0,141.36,141.28,17.6946]
[1724251123989,52.0745,141.36,141.3,7.0771]
[1724251124160,45.0,141.36,141.3,7.0771]
[1724251124361,45.0,141.37,141.3,7.0771]
[1724251124757,7.0751,141.34,141.29,7.0775]
[1724251125590,7.0756,141.33,141.29,7.0775]
[1724251126298,1.76921929,141.32,141.25,17.6988]
[1724251126588,45.0,141.37,141.2,6.0273]
[1724251126589,419.45107131,141.36,141.2,6.0273]
[1724251126768,7.0786,141.28,141.21,17.7028]
[1724251127103,8.84857955,141.27,141.22,7.081]
[1724251127385,7.0792,141.26,141.22,7.081]
[1724251127690,7.0787,141.27,141.22,7.081]
[1724251127870,1.76997013,141.26,141.21,17.7028]
[1724251128083,17.6934,141.3,141.18,34.1162]
[1724251128084,7.0797,141.25,141.18,34.1162]
[1724251128290,7.0797,141.25,141.2,7.082]
[1724251128493,17.6934,141.3,141.21,7.0816]
[1724251128705,7.0792,141.26,141.21,7.0816]
[1724251129003,387.8,141.31,141.19,69.1729]
[1724251129190,387.8,141.31,141.2,20.0]
[1724251129673,387.8,141.31,141.22,7.0807]
[1724251129674,7.0787,141.27,141.22,7.0807]
[1724251129876,387.8,141.31,141.21,17.82899]
[1724251130075,7.0781,141.28,141.24,7.0801]
[1724251130474,7.0781,141.28,141.23,7.0805]
[1724251132018,8.84843918,141.27,141.22,7.0811]
[1724251132207,7.0786,141.27,141.22,7.0811]
[1724251133416,1.76997954,141.31,141.21,17.7035]
[1724251133588,1.76997954,141.31,141.19,7.0826]
[1724251133589,7.0802,141.24,141.19,7.0826]
[1724251134205,7.0797,141.25,141.2,7.0819]
[1724251134411,7.0797,141.25,141.19,17.7058]
[1724251134616,6.337,141.3,141.21,17.7033]
[1724251134780,46.76989199,141.29,141.21,17.7033]
[1724251135517,7.0787,141.27,141.22,7.0807]
[1724251136131,387.8,141.32,141.21,0.12549]
[1724251136325,387.8,141.32,141.19,35.4125]
[1724251136326,387.8,141.32,141.27,24.7744]
[1724251136608,1.76944735,141.31,141.24,17.6998]
[1724251136795,19.46154735,141.31,141.21,17.7035]
[1724251137119,40.8381,141.28,141.23,7.0804]
[1724251137417,7.0781,141.28,141.23,7.0804]
[1724251137592,387.8,141.33,141.23,17.701]
[1724251137796,65.0,141.32,141.23,17.701]
[1724251138001,387.8,141.33,141.25,17.6983]
[1724251138194,394.8756,141.33,141.28,7.0779]
[1724251138395,387.8,141.36,141.27,17.6959]
[1724251138610,7.0756,141.33,141.28,7.078]
[1724251138987,7.0762,141.32,141.27,24.7744]
[1724251140089,1.76952982,141.31,141.24,17.7]
[1724251140316,21.7696043,141.35,141.24,17.7]
[1724251140505,7.0785,141.28,141.24,17.7]
[1724251140710,1.76981362,141.27,141.23,7.0804]
[1724251141011,1.76981362,141.27,141.21,17.7036]
[1724251141012,8.84851362,141.27,141.22,7.0811]
[1724251141212,17.6923,141.31,141.21,24.7851]
[1724251141213,7.0791,141.26,141.21,24.7851]
[1724251141511,1.77012695,141.25,141.2,7.082]
[1724251141719,24.0351,141.29,141.2,7.0819]
[1724251142022,24.0351,141.29,141.18,34.1164]
[1724251142191,45.0,141.28,141.18,34.1164]
[1724251142391,7.0797,141.25,141.2,7.0817]
[1724251143340,7.0792,141.26,141.21,7.0815]
[1724251143548,1.77013813,141.27,141.2,17.7044]
[1724251143843,403.5837,141.32,141.23,7.0806]
[1724251144016,20.0,141.31,141.23,7.0806]
[1724251144221,20.0,141.31,141.22,17.7021]
[1724251144537,21.76997408,141.31,141.19,0.12549]
[1724251144712,21.76997408,141.31,141.19,20.12549]
[1724251144913,21.76997408,141.31,141.21,7.0816]
[1724251145111,21.77008709,141.31,141.19,20.0]
[1724251145405,387.8,141.32,141.24,17.6997]
[1724251145623,387.8,141.32,141.26,17.697]